fUST/lending_fUST_20250317
["ID","MTS","AMOUNT","RATE_DAILY","PERIOD"]
[356294452,1742211032061,-500.0,8.118e-05,2]
[356294453,1742211032071,-500.0,8.118e-05,2]
[356294454,1742211032081,-250.0,8.118e-05,2]
[356294455,1742211032091,-500.0,8.118e-05,2]
[356294456,1742211032101,-500.0,8.118e-05,2]
[356294457,1742211032111,-500.0,8.118e-05,2]
[356294458,1742211032121,-500.0,8.118e-05,2]
[356294459,1742211032131,-302.0,8.118e-05,2]
[356294460,1742211032141,-28862.80851587,8.119e-05,2]
[356294461,1742211032182,-479.214829,8.119e-05,2]
[356294466,1742211037979,-1563.96716672,8.119e-05,2]
[356294593,1742211491147,752.27,8e-05,2]
[356294594,1742211683185,22090.6475624,7.397e-05,2]
[356294595,1742211963226,22070.9386426,8e-05,2]
[356294625,1742212232412,-495.80540777,8.018e-05,2]
[356294626,1742212232422,-250.0,8.018e-05,2]
[356294627,1742212232435,-500.0,8.018e-05,2]
[356294628,1742212232444,-500.0,8.018e-05,2]
[356294629,1742212232454,-300.0,8.018e-05,2]
[356294630,1742212232463,-167602.65455994,8.019e-05,2]
[356294645,1742212238150,-3561.71520727,8.019e-05,2]
[356294646,1742212238204,-30429.24132346,8.019e-05,2]
[356294704,1742212240506,-1605.52430516,8.019e-05,2]
[356294706,1742212240518,-2129.85333198,8.019e-05,2]
[356294742,1742212243337,-1677.28475584,8.019e-05,2]
[356294750,1742212246363,-14993.72651635,8.019e-05,2]
[356294751,1742212246374,-250.77154855,8.118e-05,2]
[356294752,1742212246385,-250.0,8.119e-05,2]
[356294753,1742212246395,-500.0,8.193e-05,2]
[356294754,1742212246404,-196.67263897,8.193e-05,2]
[356294755,1742212246414,-500.0,8.193e-05,2]
[356294756,1742212246424,-500.0,8.193e-05,2]
[356294757,1742212246434,-500.0,8.193e-05,2]
[356294758,1742212246444,-474.95519472,8.193e-05,2]
[356294759,1742212246453,-163.53559499,8.193e-05,2]
[356294760,1742212246463,-496.91160306,8.193e-05,2]
[356294761,1742212246473,-159.02948794,8.193e-05,2]
[356294762,1742212246483,-260.03428636,8.193e-05,2]
[356294763,1742212246493,-155.01779332,8.193e-05,2]
[356294764,1742212246504,-500.26877308,8.193e-05,2]
[356294765,1742212246513,-500.0,8.193e-05,2]
[356294766,1742212246523,-500.0,8.193e-05,2]
[356294767,1742212246533,-500.0,8.193e-05,2]
[356294769,1742212246543,-269.54652506,8.193e-05,2]
[356294771,1742212246552,-169.01928419,8.193e-05,2]
[356294773,1742212246562,-273.03115141,8.193e-05,2]
[356294775,1742212246573,-500.0,8.193e-05,2]
[356294776,1742212246584,-500.0,8.193e-05,2]
[356294777,1742212246594,-500.0,8.193e-05,2]
[356294778,1742212246606,-500.0,8.193e-05,2]
[356294779,1742212246615,-500.0,8.193e-05,2]
[356294780,1742212246625,-378.40065255,8.193e-05,2]
[356294781,1742212246638,-121.59934745,8.193e-05,2]
[356294782,1742212246648,-400.99708935,8.193e-05,2]
[356294783,1742212246657,-558.48964157,8.193e-05,2]
[356294784,1742212246667,-383.06858051,8.193e-05,2]
[356294785,1742212314331,1259.01874477,0.00014,30]
[356294786,1742212319554,222000.0,7.919e-05,2]
[356294787,1742212707653,1234.0171873,7.397e-05,2]
[356294844,1742213432709,-347.06378544,8.118e-05,2]
[356294846,1742213432719,-300.0,8.118e-05,2]
[356294848,1742213432729,-45767.05041497,8.119e-05,2]
[356294887,1742213438300,-8629.59403904,8.119e-05,2]
[356294894,1742213438366,-444.5687682,8.119e-05,2]
[356295052,1742213446639,-2548.9748,8.119e-05,2]
[356295104,1742214467041,-200.0,0.00017424,120]
[356295105,1742214467064,-200.0,0.00017487,120]
[356295106,1742214467087,-479.9832186,0.00018,120]
[356295107,1742214467110,-120.0167814,0.00018,120]
[356295108,1742214472762,-1000.0,0.00018,120]
[356295109,1742214474219,198.0,8e-05,2]
[356295110,1742214475645,-1000.0,0.00018,120]
[356295115,1742214508810,-1000.0,0.00018,120]
[356295117,1742214524328,198.67400403,8e-05,2]
[356295120,1742214534500,-1000.0,0.00018,120]
[356295156,1742214632881,-300.0,8.017e-05,2]
[356295159,1742214633105,-309.09659444,8.018e-05,2]
[356295160,1742214633118,-500.0,8.018e-05,2]
[356295161,1742214633129,-500.0,8.018e-05,2]
[356295162,1742214633141,-500.0,8.018e-05,2]
[356295163,1742214633154,-500.0,8.018e-05,2]
[356295164,1742214633166,-500.0,8.018e-05,2]
[356295165,1742214633178,-447.37992555,8.018e-05,2]
[356295166,1742214633190,-500.0,8.018e-05,2]
[356295167,1742214633207,-500.0,8.018e-05,2]
[356295168,1742214633219,-500.0,8.018e-05,2]
[356295169,1742214633231,-215.34089961,8.018e-05,2]
[356295170,1742214633243,-500.0,8.018e-05,2]
[356295171,1742214633256,-34557.20598214,8.019e-05,2]
[356295172,1742214633281,-6616.4597546,8.019e-05,2]
[356295173,1742214633295,-1754.669697,8.019e-05,2]
[356295174,1742214633311,-2414.26099033,8.019e-05,2]
[356295175,1742214633325,-14788.57420057,8.019e-05,2]
[356295176,1742214633449,-468.04,8.019e-05,2]
[356295177,1742214633470,-161400.78937536,8.019e-05,2]
[356295178,1742214633482,-327.82357884,8.1e-05,2]
[356295179,1742214633493,-468.43167165,8.1e-05,2]
[356295180,1742214633505,-200.0,8.116e-05,2]
[356295181,1742214633517,-201.97876996,8.119e-05,2]
[356295182,1742214633529,-199.0,8.119e-05,2]
[356295183,1742214633542,-468.43167164,8.13e-05,2]
[356295184,1742214633553,-468.43167164,8.16e-05,2]
[356295185,1742214633564,-1913.0,8.174e-05,2]
[356295186,1742214633575,-541.0,8.174e-05,2]
[356295187,1742214633587,-2267.0,8.174e-05,2]
[356295188,1742214633599,-187.7311522,8.18e-05,2]
[356295189,1742214633610,-187.0114735,8.18e-05,2]
[356295190,1742214633622,-468.43167164,8.189e-05,2]
[356295191,1742214633633,-302.0,8.192e-05,2]
[356295192,1742214633644,-330.69157533,8.193e-05,2]
[356295193,1742214633656,-500.0,8.193e-05,2]
[356295194,1742214633668,-500.0,8.193e-05,2]
[356295195,1742214633679,-500.0,8.193e-05,2]
[356295196,1742214633691,-200.02282154,8.193e-05,2]
[356295197,1742214633702,-500.0,8.193e-05,2]
[356295198,1742214633714,-266.53040972,8.193e-05,2]
[356295199,1742214633726,-268.03057907,8.193e-05,2]
[356295200,1742214633738,-500.0,8.193e-05,2]
[356295201,1742214633751,-500.0,8.193e-05,2]
[356295202,1742214633767,-500.0,8.193e-05,2]
[356295203,1742214633780,-260.52972506,8.193e-05,2]
[356295204,1742214633791,-152.01734336,8.193e-05,2]
[356295205,1742214633802,-500.42655187,8.193e-05,2]
[356295206,1742214633814,-500.0,8.193e-05,2]
[356295207,1742214633826,-500.0,8.193e-05,2]
[356295208,1742214633837,-500.0,8.193e-05,2]
[356295209,1742214633847,-419.02466296,8.193e-05,2]
[356295210,1742214633859,-502.10408615,8.193e-05,2]
[356295211,1742214633870,-500.0,8.193e-05,2]
[356295212,1742214633882,-500.0,8.193e-05,2]
[356295213,1742214633893,-500.0,8.193e-05,2]
[356295214,1742214633905,-500.0,8.193e-05,2]
[356295215,1742214633918,-503.00722947,8.193e-05,2]
[356295216,1742214633929,-500.0,8.193e-05,2]
[356295217,1742214633943,-635.7641911,8.193e-05,2]
[356295218,1742214633954,-500.0,8.193e-05,2]
[356295219,1742214633966,-411.91149339,8.193e-05,2]
[356295220,1742214633977,-500.0,8.193e-05,2]
[356295221,1742214633988,-500.0,8.193e-05,2]
[356295222,1742214633999,-206.629,8.193e-05,2]
[356295223,1742214634011,-2693.06876413,8.2e-05,2]
[356295224,1742214634023,-302.0,8.214e-05,2]
[356295225,1742214634035,-600.0,8.214e-05,2]
[356295226,1742214634048,-204.14306495,8.219e-05,2]
[356295227,1742214634061,-500.0,8.219e-05,2]
[356295228,1742214634074,-500.0,8.219e-05,2]
[356295229,1742214634085,-500.0,8.219e-05,2]
[356295230,1742214634096,-500.0,8.219e-05,2]
[356295231,1742214634107,-500.0,8.219e-05,2]
[356295232,1742214634118,-509.72620313,8.219e-05,2]
[356295233,1742214634130,-500.0,8.219e-05,2]
[356295234,1742214634142,-500.0,8.219e-05,2]
[356295235,1742214634153,-500.0,8.219e-05,2]
[356295236,1742214634164,-500.0,8.219e-05,2]
[356295237,1742214634176,-500.0,8.219e-05,2]
[356295238,1742214634187,-511.43087943,8.219e-05,2]
[356295239,1742214634199,-500.0,8.219e-05,2]
[356295240,1742214634210,-500.0,8.219e-05,2]
[356295241,1742214634222,-506.42054781,8.219e-05,2]
[356295242,1742214634234,-513.64810738,8.219e-05,2]
[356295243,1742214634246,-280.88208758,8.219e-05,2]
[356295244,1742214634257,-511.43987766,8.219e-05,2]
[356295245,1742214634269,-648.05604442,8.219e-05,2]
[356295246,1742214634280,-500.0,8.219e-05,2]
[356295247,1742214634293,-500.0,8.219e-05,2]
[356295248,1742214634304,-500.0,8.219e-05,2]
[356295249,1742214634315,-514.20776878,8.219e-05,2]
[356295250,1742214634327,-500.0,8.219e-05,2]
[356295251,1742214634340,-500.0,8.219e-05,2]
[356295252,1742214634351,-500.0,8.219e-05,2]
[356295253,1742214634363,-516.5123842,8.219e-05,2]
[356295254,1742214634375,-525.52222788,8.219e-05,2]
[356295255,1742214634387,-507.50816322,8.219e-05,2]
[356295256,1742214634398,-500.0,8.219e-05,2]
[356295257,1742214634410,-500.0,8.219e-05,2]
[356295258,1742214634421,-500.0,8.219e-05,2]
[356295259,1742214634433,-500.0,8.219e-05,2]
[356295260,1742214634445,-166.232538,8.219e-05,2]
[356295261,1742214634458,-166.232538,8.219e-05,2]
[356295262,1742214634470,-166.232538,8.219e-05,2]
[356295263,1742214634485,-166.232538,8.219e-05,2]
[356295264,1742214634498,-166.232538,8.219e-05,2]
[356295265,1742214634509,-166.232538,8.219e-05,2]
[356295266,1742214634521,-166.232538,8.219e-05,2]
[356295267,1742214634533,-166.232538,8.219e-05,2]
[356295268,1742214634546,-166.232538,8.219e-05,2]
[356295269,1742214634557,-166.232538,8.219e-05,2]
[356295270,1742214634569,-166.232538,8.219e-05,2]
[356295271,1742214634581,-166.232538,8.219e-05,2]
[356295272,1742214634594,-166.232538,8.219e-05,2]
[356295273,1742214634606,-166.232538,8.219e-05,2]
[356295274,1742214634619,-166.232538,8.219e-05,2]
[356295275,1742214634632,-166.232538,8.219e-05,2]
[356295276,1742214634645,-166.232538,8.219e-05,2]
[356295277,1742214634658,-166.232538,8.219e-05,2]
[356295278,1742214634671,-166.232538,8.219e-05,2]
[356295279,1742214634684,-166.232531,8.219e-05,2]
[356295280,1742214634696,-502.67441638,8.219e-05,2]
[356295281,1742214634708,-522.64990552,8.219e-05,2]
[356295282,1742214634719,-500.0,8.219e-05,2]
[356295283,1742214634732,-500.0,8.219e-05,2]
[356295284,1742214634743,-1244.47,8.219e-05,2]
[356295285,1742214634755,-500.0,8.219e-05,2]
[356295286,1742214634768,-150.29,8.219e-05,2]
[356295287,1742214634779,-500.0,8.219e-05,2]
[356295288,1742214634790,-500.0,8.219e-05,2]
[356295289,1742214634801,-500.0,8.219e-05,2]
[356295290,1742214634814,-500.0,8.219e-05,2]
[356295291,1742214634827,-500.0,8.219e-05,2]
[356295292,1742214634838,-594.57663765,8.219e-05,2]
[356295293,1742214634850,-500.0,8.219e-05,2]
[356295294,1742214634862,-500.0,8.219e-05,2]
[356295295,1742214634873,-500.0,8.219e-05,2]
[356295296,1742214634884,-500.0,8.219e-05,2]
[356295297,1742214634896,-538.18,8.219e-05,2]
[356295298,1742214634908,-500.0,8.219e-05,2]
[356295299,1742214634919,-500.0,8.219e-05,2]
[356295300,1742214634931,-500.0,8.219e-05,2]
[356295301,1742214634943,-500.0,8.219e-05,2]
[356295302,1742214634954,-500.0,8.219e-05,2]
[356295303,1742214634967,-500.0,8.219e-05,2]
[356295304,1742214634979,-500.0,8.219e-05,2]
[356295305,1742214634990,-500.0,8.219e-05,2]
[356295306,1742214635002,-500.0,8.219e-05,2]
[356295307,1742214635013,-500.0,8.219e-05,2]
[356295308,1742214635026,-500.0,8.219e-05,2]
[356295309,1742214635038,-500.0,8.219e-05,2]
[356295310,1742214635050,-515.41,8.219e-05,2]
[356295311,1742214635063,-500.0,8.219e-05,2]
[356295312,1742214635074,-521.41,8.219e-05,2]
[356295313,1742214635085,-500.0,8.219e-05,2]
[356295314,1742214635097,-500.0,8.219e-05,2]
[356295315,1742214635109,-500.0,8.219e-05,2]
[356295316,1742214635120,-500.0,8.219e-05,2]
[356295317,1742214635131,-500.0,8.219e-05,2]
[356295318,1742214635143,-500.0,8.219e-05,2]
[356295319,1742214635155,-452.2,8.219e-05,2]
[356295320,1742214635376,-151.45589968,8.219e-05,2]
[356295321,1742214635389,-164.97,8.219e-05,2]
[356295322,1742214635402,-500.0,8.219e-05,2]
[356295323,1742214635415,-500.0,8.219e-05,2]
[356295324,1742214635428,-500.0,8.219e-05,2]
[356295325,1742214635440,-500.0,8.219e-05,2]
[356295326,1742214635454,-252.04692832,8.219e-05,2]
[356295327,1742214635466,-500.62111948,8.219e-05,2]
[356295328,1742214635480,-500.0,8.219e-05,2]
[356295329,1742214635493,-527.62333481,8.219e-05,2]
[356295330,1742214635504,-500.0,8.219e-05,2]
[356295331,1742214635517,-506.93887013,8.219e-05,2]
[356295332,1742214635529,-503.36832482,8.219e-05,2]
[356295333,1742214635541,-500.0,8.219e-05,2]
[356295334,1742214635554,-500.0,8.219e-05,2]
[356295335,1742214635566,-500.0,8.219e-05,2]
[356295336,1742214635789,-500.0,8.219e-05,2]
[356295337,1742214635801,-500.0,8.219e-05,2]
[356295338,1742214635813,-244.42070983,8.219e-05,2]
[356295339,1742214635824,-500.0,8.219e-05,2]
[356295340,1742214635835,-500.0,8.219e-05,2]
[356295341,1742214635846,-567.71758197,8.219e-05,2]
[356295342,1742214635856,-500.0,8.219e-05,2]
[356295343,1742214635867,-291.67,8.219e-05,2]
[356295344,1742214635878,-500.0,8.219e-05,2]
[356295345,1742214635890,-500.0,8.219e-05,2]
[356295346,1742214635901,-500.0,8.219e-05,2]
[356295347,1742214635912,-468.43167164,8.219e-05,2]
[356295348,1742214635923,-500.0,8.219e-05,2]
[356295349,1742214635935,-500.0,8.219e-05,2]
[356295350,1742214635947,-500.0,8.219e-05,2]
[356295351,1742214635958,-695.75,8.219e-05,2]
[356295352,1742214635969,-1000.0,8.219e-05,2]
[356295353,1742214635981,-500.0,8.219e-05,2]
[356295354,1742214635992,-500.0,8.219e-05,2]
[356295355,1742214636003,-500.0,8.219e-05,2]
[356295356,1742214636015,-513.88822473,8.219e-05,2]
[356295357,1742214636027,-500.0,8.219e-05,2]
[356295358,1742214636038,-2363.16,8.219e-05,2]
[356295359,1742214636049,-500.0,8.219e-05,2]
[356295360,1742214636060,-500.0,8.219e-05,2]
[356295361,1742214636071,-500.0,8.219e-05,2]
[356295362,1742214636082,-500.0,8.219e-05,2]
[356295363,1742214636093,-398.07,8.219e-05,2]
[356295364,1742214636103,-500.0,8.219e-05,2]
[356295365,1742214636114,-500.0,8.219e-05,2]
[356295366,1742214636125,-778.41,8.219e-05,2]
[356295367,1742214636136,-500.0,8.219e-05,2]
[356295368,1742214636148,-500.0,8.219e-05,2]
[356295369,1742214636160,-150.29,8.219e-05,2]
[356295370,1742214636171,-152.84637283,8.219e-05,2]
[356295371,1742214636184,-500.0,8.219e-05,2]
[356295372,1742214636197,-150.29,8.219e-05,2]
[356295373,1742214636208,-167.98154087,8.219e-05,2]
[356295374,1742214636220,-500.0,8.219e-05,2]
[356295375,1742214636232,-500.0,8.219e-05,2]
[356295376,1742214636245,-672.75,8.219e-05,2]
[356295377,1742214636256,-672.75,8.219e-05,2]
[356295378,1742214636267,-672.75,8.219e-05,2]
[356295379,1742214636278,-672.75,8.219e-05,2]
[356295380,1742214636290,-672.75,8.219e-05,2]
[356295381,1742214636301,-672.75,8.219e-05,2]
[356295382,1742214636314,-672.75,8.219e-05,2]
[356295383,1742214636326,-672.75,8.219e-05,2]
[356295384,1742214636337,-672.75,8.219e-05,2]
[356295385,1742214636350,-672.75,8.219e-05,2]
[356295386,1742214636360,-672.75,8.219e-05,2]
[356295387,1742214636373,-672.75,8.219e-05,2]
[356295388,1742214636384,-672.75,8.219e-05,2]
[356295389,1742214636395,-672.75,8.219e-05,2]
[356295390,1742214636406,-672.75,8.219e-05,2]
[356295391,1742214636418,-500.0,8.219e-05,2]
[356295392,1742214636430,-672.75,8.219e-05,2]
[356295393,1742214636440,-672.75,8.219e-05,2]
[356295394,1742214636452,-672.75,8.219e-05,2]
[356295395,1742214636463,-672.75,8.219e-05,2]
[356295396,1742214636475,-672.75,8.219e-05,2]
[356295397,1742214636486,-1889.4,8.219e-05,2]
[356295398,1742214636498,-672.75,8.219e-05,2]
[356295399,1742214636509,-672.75,8.219e-05,2]
[356295400,1742214636522,-672.75,8.219e-05,2]
[356295401,1742214636533,-672.95,8.219e-05,2]
[356295402,1742214636544,-500.0,8.219e-05,2]
[356295403,1742214636554,-500.0,8.219e-05,2]
[356295404,1742214636565,-549.30879999,8.219e-05,2]
[356295405,1742214636576,-3851.55,8.219e-05,2]
[356295406,1742214636587,-904.87,8.219e-05,2]
[356295407,1742214636598,-500.0,8.219e-05,2]
[356295408,1742214636610,-505.72849759,8.219e-05,2]
[356295409,1742214636622,-500.0,8.219e-05,2]
[356295410,1742214636634,-500.0,8.219e-05,2]
[356295411,1742214636645,-3071.58,8.219e-05,2]
[356295412,1742214636657,-500.0,8.219e-05,2]
[356295413,1742214636669,-168.99400837,8.219e-05,2]
[356295414,1742214636680,-2315.33,8.219e-05,2]
[356295415,1742214636691,-3041.64,8.219e-05,2]
[356295416,1742214636703,-567.12,8.219e-05,2]
[356295417,1742214636715,-1656.96,8.219e-05,2]
[356295418,1742214636727,-11662.06421228,8.219e-05,2]
[356295419,1742214636739,-500.0,8.219e-05,2]
[356295420,1742214636749,-500.0,8.219e-05,2]
[356295421,1742214636760,-500.0,8.219e-05,2]
[356295422,1742214636773,-1262.42,8.219e-05,2]
[356295423,1742214636785,-500.0,8.219e-05,2]
[356295424,1742214636796,-209.41,8.219e-05,2]
[356295425,1742214636808,-500.0,8.219e-05,2]
[356295426,1742214636820,-1413.82,8.219e-05,2]
[356295427,1742214636831,-500.0,8.219e-05,2]
[356295428,1742214636842,-500.0,8.219e-05,2]
[356295429,1742214636853,-466.45692256,8.219e-05,2]
[356295444,1742214638635,-399.0,8.174e-05,2]
[356295445,1742214638647,-131.67,8.193e-05,2]
[356295496,1742214644306,-4.54626251,8.174e-05,2]
[356295586,1742214646862,-2092.51294359,8.174e-05,2]
[356295588,1742214646873,-150.0,8.174e-05,2]
[356295590,1742214646883,-234.50843525,8.193e-05,2]
[356295592,1742214646898,-33.54307744,8.219e-05,2]
[356295593,1742214646909,-4894.73379645,8.219e-05,2]
[356295594,1742214646922,-2082.68620355,8.219e-05,2]
[356295595,1742214646933,-6065.13808279,8.219e-05,2]
[356295597,1742214647293,-1707.96459208,8.219e-05,2]
[356295598,1742214746019,222000.0,7.919e-05,2]
[356295607,1742215379163,5004.49,0.00014,30]
[356295608,1742215447129,2502.25,8e-05,2]
[356295615,1742215459477,2502.24,8e-05,2]
[356295670,1742215831853,-500.0,8.118e-05,2]
[356295671,1742215831864,-163.35469732,8.118e-05,2]
[356295672,1742215831874,-494.15332506,8.118e-05,2]
[356295673,1742215831884,-28725.49856145,8.119e-05,2]
[356295793,1742215846080,-93143.30240454,8.119e-05,2]
[356295805,1742216500502,195.7751349,7.191e-05,2]
[356295808,1742216934247,110025.37523004,8e-05,2]
[356295895,1742217032322,-300.0,8.117e-05,2]
[356295897,1742217032332,-341.27328895,8.118e-05,2]
[356295899,1742217032342,-500.0,8.118e-05,2]
[356295901,1742217032352,-402.99427418,8.118e-05,2]
[356295939,1742217037884,-97.00572582,8.118e-05,2]
[356295940,1742217037894,-500.0,8.118e-05,2]
[356295941,1742217037904,-2678.19267524,8.118e-05,2]
[356295942,1742217037940,-1415.46197927,8.118e-05,2]
[356295943,1742217037950,-768.89713273,8.119e-05,2]
[356296126,1742217046068,-22157.90808376,8.119e-05,2]
[356296133,1742217046123,-576.09331592,8.119e-05,2]
[356296141,1742217695060,152.21,0.000139,31]
[356296142,1742217695113,152.21,0.000139,31]
[356296143,1742217695174,152.21,0.000139,31]
[356296144,1742217695246,152.21,0.000139,31]
[356296145,1742217695313,152.21,0.000139,31]
[356296146,1742217695362,152.21,0.000139,31]
[356296147,1742217695433,152.21,0.000139,31]
[356296193,1742218232242,-549.65405378,8.018e-05,2]
[356296194,1742218232252,-500.0,8.018e-05,2]
[356296195,1742218232262,-500.0,8.018e-05,2]
[356296196,1742218232272,-286.42685099,8.018e-05,2]
[356296197,1742218232281,-300.0,8.018e-05,2]
[356296198,1742218232291,-47967.19503076,8.019e-05,2]
[356296201,1742218232468,-574.62593494,8.019e-05,2]
[356296202,1742218232479,-700.34948743,8.019e-05,2]
[356296220,1742218238049,-59658.17019957,8.019e-05,2]
[356296253,1742218240682,-4154.42937791,8.019e-05,2]
[356296270,1742218243351,-927.32448674,8.019e-05,2]
[356296271,1742218243473,-414.15195747,8.019e-05,2]
[356296275,1742218246445,-5568.68194599,8.019e-05,2]
[356296276,1742218246457,-16781.59668225,8.019e-05,2]
[356296278,1742218300319,152.36,0.000139,31]
[356296279,1742218300378,152.36,0.000139,31]
[356296280,1742218300463,152.36,0.000139,31]
[356296281,1742218300506,152.36,0.000139,31]
[356296282,1742218300544,152.36,0.000139,31]
[356296283,1742218300578,152.36,0.000139,31]
[356296284,1742218300650,152.36,0.000139,31]
[356296286,1742218338540,-300.0,8.017e-05,2]
[356296297,1742218906450,152.46,0.000139,31]
[356296298,1742218906509,152.46,0.000139,31]
[356296299,1742218906566,152.46,0.000139,31]
[356296300,1742218906635,152.46,0.000139,31]
[356296301,1742218906690,152.46,0.000139,31]
[356296302,1742218906727,152.46,0.000139,31]
[356296303,1742218906759,152.46,0.000139,31]
[356296355,1742219432578,-251.00000001,8.116e-05,2]
[356296356,1742219432588,-252.0,8.117e-05,2]
[356296357,1742219432598,-300.0,8.117e-05,2]
[356296358,1742219432608,-500.0,8.118e-05,2]
[356296359,1742219432617,-45.94014744,8.118e-05,2]
[356296360,1742219432629,-236.91089142,8.118e-05,2]
[356296361,1742219432640,-500.0,8.118e-05,2]
[356296362,1742219432650,-500.0,8.118e-05,2]
[356296363,1742219432659,-500.0,8.118e-05,2]
[356296364,1742219432668,-500.0,8.118e-05,2]
[356296365,1742219432678,-45.91402081,8.118e-05,2]
[356296366,1742219432690,-321.34329991,8.118e-05,2]
[356296367,1742219432700,-331.30594568,8.118e-05,2]
[356296397,1742219438422,-53.8607136,8.118e-05,2]
[356296398,1742219438431,-500.0,8.118e-05,2]
[356296399,1742219438441,-500.0,8.118e-05,2]
[356296400,1742219438450,-163.10184427,8.118e-05,2]
[356296401,1742219438460,-500.0,8.118e-05,2]
[356296402,1742219438472,-304.30900631,8.118e-05,2]
[356296403,1742219438483,-302.0,8.118e-05,2]
[356296404,1742219438496,-6583.96039549,8.119e-05,2]
[356296405,1742219438514,-2534.75347522,8.119e-05,2]
[356296418,1742219443659,-881.55526705,8.119e-05,2]
[356296426,1742219512913,152.5,0.000139,31]
[356296427,1742219512970,152.5,0.000139,31]
[356296428,1742219513048,152.5,0.000139,31]
[356296429,1742219513097,152.5,0.000139,31]
[356296430,1742219513169,152.5,0.000139,31]
[356296431,1742219513223,152.5,0.000139,31]
[356296432,1742219513276,152.5,0.000139,31]
[356296455,1742220093950,19013.9888622,7.397e-05,2]
[356296456,1742220119846,152.54,0.000139,31]
[356296457,1742220119957,152.54,0.000139,31]
[356296458,1742220120024,152.54,0.000139,31]
[356296459,1742220120085,152.54,0.000139,31]
[356296460,1742220120131,152.54,0.000139,31]
[356296461,1742220120196,152.54,0.000139,31]
[356296462,1742220120262,152.54,0.000139,31]
[356296463,1742220293844,-300.0,8.117e-05,2]
[356296465,1742220377020,10000.0,0.00015,120]
[356296502,1742220632682,-300.0,8.017e-05,2]
[356296503,1742220632695,-500.0,8.018e-05,2]
[356296504,1742220632707,-566.88703552,8.018e-05,2]
[356296506,1742220632719,-500.0,8.018e-05,2]
[356296508,1742220632731,-500.0,8.018e-05,2]
[356296510,1742220632743,-500.0,8.018e-05,2]
[356296513,1742220632756,-500.0,8.018e-05,2]
[356296514,1742220632769,-500.0,8.018e-05,2]
[356296516,1742220632782,-500.0,8.018e-05,2]
[356296517,1742220632796,-500.0,8.018e-05,2]
[356296518,1742220632808,-627.6675751,8.018e-05,2]
[356296519,1742220632820,-500.0,8.018e-05,2]
[356296520,1742220632832,-500.0,8.018e-05,2]
[356296521,1742220632844,-500.0,8.018e-05,2]
[356296522,1742220632855,-500.0,8.018e-05,2]
[356296523,1742220632867,-250.0,8.018e-05,2]
[356296525,1742220632879,-500.0,8.018e-05,2]
[356296526,1742220632891,-56028.28657896,8.019e-05,2]
[356296527,1742220632914,-132759.48518927,8.019e-05,2]
[356296528,1742220632928,-628.38707331,8.019e-05,2]
[356296546,1742220638494,-3389.80497274,8.019e-05,2]
[356296547,1742220638507,-8568.8926521,8.019e-05,2]
[356296572,1742220640934,-735.78660761,8.019e-05,2]
[356296652,1742220643772,-18009.20952992,8.019e-05,2]
[356296690,1742220646745,-1880.14739609,8.019e-05,2]
[356296691,1742220646754,-151.0,8.118e-05,2]
[356296692,1742220646764,-399.0,8.136e-05,2]
[356296693,1742220646773,-150.0,8.136e-05,2]
[356296694,1742220646783,-1913.0,8.146e-05,2]
[356296695,1742220646793,-541.0,8.146e-05,2]
[356296696,1742220646803,-2267.0,8.146e-05,2]
[356296697,1742220646814,-250.0,8.178e-05,2]
[356296698,1742220646823,-499.99999909,8.19e-05,2]
[356296699,1742220646833,-2803.87443732,8.193e-05,2]
[356296702,1742220652623,2234.63405091,8e-05,2]
[356296703,1742220695966,222000.0,7.919e-05,2]
[356296706,1742220726938,152.58,0.000139,31]
[356296707,1742220727026,152.58,0.000139,31]
[356296708,1742220727105,152.58,0.000139,31]
[356296709,1742220727156,152.58,0.000139,31]
[356296710,1742220727239,152.58,0.000139,31]
[356296711,1742220727291,152.58,0.000139,31]
[356296723,1742221333413,152.61,0.000139,31]
[356296724,1742221333509,152.61,0.000139,31]